bitfinex/quotes_ETHUSD_20240924
["timestamp","ask_amount","ask_price","bid_price","bid_amount"]
[1727178317670,2.99269294,2645.6,2645.4,3.78006]
[1727178317871,2.99269294,2645.6,2645.4,3.78014]
[1727178319296,2.99269294,2645.6,2645.3,3.78026]
[1727178319499,1.67296199,2645.5,2645.2,3.78036]
[1727178319699,3.08719813,2645.5,2645.2,3.78036]
[1727178319878,1.67296199,2645.5,2645.2,3.78036]
[1727178320703,1.41361745,2645.4,2645.1,3.78056]
[1727178320872,2.99207425,2645.4,2645.1,3.78056]
[1727178321066,2.99207425,2645.4,2644.9,3.78077]
[1727178321067,3.08658416,2645.4,2645.0,3.78058]
[1727178321303,1.41357776,2645.3,2645.0,3.78058]
[1727178321610,3.87500472,2645.2,2644.7,3.78106]
[1727178321774,3.87500472,2645.2,2644.7,7.56212]
[1727178321775,1.41330035,2645.1,2644.7,7.56212]
[1727178321981,2.99175715,2645.1,2644.7,3.78106]
[1727178322284,0.09452234,2645.1,2644.7,3.78106]
[1727178322672,1.5784568,2645.0,2644.7,3.78106]
[1727178322879,2.99152004,2645.0,2644.7,3.78106]
[1727178323076,2.99152004,2645.0,2644.7,3.78103]
[1727178323280,1.67297914,2645.1,2644.7,3.78103]
[1727178323598,1.41296215,2645.0,2644.7,3.78103]
[1727178323898,1.41296215,2645.0,2644.7,7.56211]
[1727178324605,1.67297914,2645.1,2644.7,7.56211]
[1727178325783,1.18261351,2645.0,2644.7,7.56211]
[1727178326787,1.84850508,2644.9,2644.7,7.56211]
[1727178326998,0.78845777,2644.9,2644.7,7.56211]
[1727178327307,0.78845777,2644.9,2644.7,3.78103]
[1727178327510,0.78845777,2644.9,2644.7,7.56208]
[1727178327880,0.78845777,2644.9,2644.7,3.78103]
[1727178329154,1.94421825,2644.8,2644.4,3.78146]
[1727178329427,1.94421825,2644.8,2644.3,0.0192066]
[1727178329428,1.94422755,2644.7,2644.3,0.0192066]
[1727178329568,1.84969352,2644.6,2644.3,3.8009166]
[1727178329768,0.78845777,2644.6,2644.3,3.8009166]
[1727178331079,0.78845777,2644.6,2644.3,0.0192066]
[1727178331281,4.57002777,2644.4,2644.3,0.0192066]
[1727178331514,5.63099006,2644.4,2644.3,0.0192066]
[1727178331712,4.84253229,2644.4,2644.3,0.0192066]
[1727178332211,1.06096229,2644.4,2644.3,0.0192066]
[1727178332374,6.0251458,2644.4,2644.3,0.0192066]
[1727178332570,6.51554597,2644.4,2644.3,0.0192066]
[1727178332767,10.04593742,2644.4,2644.3,0.0192066]
[1727178332991,5.97955775,2644.4,2644.3,0.0192066]
[1727178333194,8.39097984,2644.4,2644.3,0.0192066]
[1727178333407,7.93598764,2644.4,2644.3,0.0192066]
[1727178333582,3.78254,2643.8,2643.5,0.0378301]
[1727178333773,0.09457225,2643.7,2643.5,0.0378301]
[1727178335040,3.87718225,2643.7,2643.5,0.0378301]
[1727178335365,3.78272,2643.6,2643.5,0.0378301]
[1727178335655,4.66461805,2643.6,2643.5,0.0378301]
[1727178336408,3.87730828,2643.6,2643.5,0.0378301]
[1727178336616,0.09458828,2643.6,2643.5,0.0378301]
[1727178336815,4.57896153,2643.6,2643.5,0.0378301]
[1727178337123,4.57896451,2643.6,2643.5,0.0378301]
[1727178337309,3.87730828,2643.6,2643.5,0.0378301]
[1727178337712,0.09458828,2643.6,2643.5,0.0378301]
[1727178338131,4.56991977,2643.7,2643.5,0.0378301]
[1727178338132,0.78730977,2643.7,2643.5,0.0378301]
[1727178338831,0.09457573,2643.9,2643.5,0.0378301]
[1727178339854,1.58110337,2643.9,2643.4,3.7828301]
[1727178340155,3.87689573,2643.9,2643.4,3.7828301]
[1727178340869,0.09457573,2643.9,2643.4,3.78297]
[1727178341036,0.09457016,2644.0,2643.5,0.378297]
[1727178341231,0.09457016,2644.0,2643.6,3.78263]
[1727178341543,0.0945696,2644.0,2643.5,3.78275]
[1727178341745,0.09457138,2644.1,2643.6,3.7826]
[1727178342123,0.09457138,2644.1,2643.6,3.78261]
[1727178342724,3.87659138,2644.1,2643.6,3.78261]
[1727178345245,3.78214,2644.0,2643.6,3.78261]
[1727178345432,0.094569,2643.9,2643.4,3.78298]
[1727178345636,3.78246,2643.8,2643.2,3.78315]
[1727178345844,0.09457769,2643.7,2643.4,3.783]
[1727178346219,0.09457769,2643.7,2643.2,3.78315]
[1727178346424,0.09457769,2643.7,2643.2,7.56635]
[1727178346666,3.13702546,2643.5,2642.7,0.7953301]
[1727178346868,3.78323,2643.3,2642.7,0.7953301]
[1727178347052,0.09459578,2643.2,2642.7,3.8217001]
[1727178347361,3.87791578,2643.2,2642.7,3.8217001]
[1727178348063,0.09460031,2643.1,2642.7,3.8217001]
[1727178348660,0.09460031,2643.1,2642.7,0.0378301]
[1727178348861,3.87814031,2643.1,2642.7,0.0378301]
[1727178349175,3.78358,2643.0,2642.7,0.0378301]
[1727178350132,0.09460031,2643.1,2642.7,0.0378301]
[1727178351453,3.87805031,2643.1,2642.7,0.0378301]
[1727178353256,0.09460031,2643.1,2642.7,0.0378301]
[1727178353466,0.09460031,2643.1,2642.7,3.8218301]
[1727178354512,3.78311,2643.4,2642.8,3.78386]
[1727178354674,3.8778189,2643.3,2642.8,3.78386]
[1727178354863,3.78322,2643.3,2642.8,3.78386]
[1727178355401,0.0945989,2643.5,2643.0,3.78353]
[1727178355402,3.78294,2643.5,2643.0,3.78353]
[1727178355698,0.09459861,2643.4,2643.0,3.78353]
[1727178357058,7.56566,2643.6,2643.1,3.78339]
[1727178357262,3.78283,2643.6,2643.1,3.78339]
[1727178357499,0.09458788,2643.5,2643.2,3.78327]
[1727178357797,3.87741435,2643.6,2643.2,3.78327]
[1727178359875,3.87741435,2643.6,2642.6,3.13702546]
[1727178359876,3.87741435,2643.6,2643.1,3.78329]
[1727178360810,3.87741435,2643.6,2642.8,3.78377]
[1727178360811,3.78306,2643.4,2642.8,3.78377]
[1727178361010,0.0945932,2643.3,2642.8,3.78377]
[1727178361809,0.0945932,2643.3,2642.9,3.7837]
[1727178362319,0.09459285,2643.4,2643.0,3.78357]
[1727178362480,3.78298,2643.5,2643.0,3.78357]
[1727178363116,0.09459029,2643.4,2642.9,4.61234]
[1727178363281,0.09459029,2643.4,2642.9,8.39598]
[1727178364218,0.09459029,2643.4,2642.9,4.61234]
[1727178364559,3.87760029,2643.4,2642.9,8.39597]
[1727178364684,0.09459271,2643.3,2642.9,4.61233]
[1727178364886,0.09459271,2643.3,2642.9,8.39598]
[1727178365212,0.09459271,2643.3,2642.9,3.78363]
[1727178365420,0.09459271,2643.3,2642.9,7.56727]
[1727178366627,3.78301,2643.4,2642.9,7.56727]
[1727178366847,0.7575,2643.7,2643.2,3.78327]
[1727178367135,7.29,2643.9,2643.5,3.7828]
[1727178367333,4.53951,2644.1,2643.6,3.7827]
[1727178367696,4.53951,2644.1,2643.8,3.78241]
[1727178367697,0.7575,2644.1,2643.8,3.78241]
[1727178367898,0.7575,2644.1,2643.6,3.7827]
[1727178368310,3.78173,2644.3,2643.8,3.78242]
[1727178368516,4.53923,2644.3,2643.8,3.78242]
[1727178369535,0.85206209,2644.3,2643.6,3.78261]
[1727178369839,3.78186,2644.2,2643.7,3.78256]
[1727178370137,0.09455927,2644.2,2643.7,3.78256]
[1727178370447,0.09455927,2644.2,2643.7,7.56505]
[1727178370612,0.09455927,2644.2,2643.7,3.78248]
[1727178370934,0.09455927,2644.2,2643.7,7.56496]
[1727178371406,0.09455927,2644.2,2643.8,3.78243]
[1727178372512,2.63612241,2644.2,2643.7,7.56498]
[1727178372717,0.87978153,2644.2,2643.7,3.78248]
[1727178372912,4.66172153,2644.2,2643.7,3.78248]
[1727178373337,0.70289698,2644.1,2643.7,3.78248]
[1727178373496,2.54245341,2644.1,2643.7,3.78248]
[1727178374820,0.70336845,2644.0,2643.7,3.78248]
[1727178375000,0.78522226,2644.1,2643.7,3.78248]
[1727178375201,2.54369139,2644.1,2643.7,3.78248]
[1727178375435,0.78522226,2644.0,2643.7,3.78248]
[1727178376004,2.54369139,2644.0,2643.5,3.78276]
[1727178376216,0.70379526,2643.9,2643.7,3.78251]
[1727178376440,0.78522226,2644.0,2643.7,3.78251]
[1727178377207,2.54546087,2644.0,2643.7,3.78251]
[1727178377945,2.54546087,2644.0,2643.9,3.78229]
[1727178378337,0.78522226,2644.1,2644.0,3.78214]
[1727178378641,0.78786703,2644.3,2644.1,3.782]
[1727178379106,1.49234507,2644.3,2644.1,3.782]
[1727178379629,0.70447175,2644.2,2644.1,3.782]
[1727178379829,0.70447175,2644.2,2644.0,4.61077]
[1727178380045,0.78786703,2644.3,2644.0,4.61077]
[1727178380213,2.54869677,2644.3,2644.0,0.8287]
[1727178380555,0.78786703,2644.3,2644.1,3.782]
[1727178380844,0.78786703,2644.4,2644.1,3.782]
[1727178381012,0.78786703,2644.4,2644.0,0.8287]
[1727178381013,6.32998501,2644.4,2644.0,0.8287]
[1727178381206,2.54838501,2644.3,2644.0,0.8287]
[1727178381411,2.54838501,2644.3,2644.0,4.61084]
[1727178382650,0.88241307,2644.4,2644.0,4.61084]
[1727178382857,0.70416845,2644.3,2644.0,4.61084]
[1727178383726,0.70416845,2644.3,2644.1,3.78189]
[1727178384132,0.78786703,2644.4,2644.1,3.78189]
[1727178384338,2.54859659,2644.4,2644.1,3.78189]
[1727178384558,0.70428849,2644.3,2644.1,3.78189]
[1727178384739,0.78786703,2644.4,2644.1,3.78189]
[1727178385050,2.54838016,2644.4,2644.1,3.78189]
[1727178385214,0.70420548,2644.3,2644.0,4.61081]
[1727178385417,0.70420548,2644.3,2644.0,8.39292]
[1727178385613,4.01943849,2644.4,2643.7,4.61119]
[1727178385818,4.56979703,2644.2,2643.7,4.61118]
[1727178386063,0.70409203,2644.1,2643.8,3.78238]
[1727178386652,1.49195906,2644.1,2643.8,3.78238]
[1727178386955,4.56979703,2644.2,2643.8,3.78238]
[1727178387111,0.70414888,2644.1,2643.8,3.78238]
[1727178387317,2.54823362,2644.1,2643.8,3.78238]
[1727178387625,4.66450262,2644.1,2643.6,3.78265]
[1727178387955,0.70411613,2644.0,2643.6,3.78265]
[1727178388356,4.66450262,2644.1,2643.6,3.78265]
[1727178388659,0.70410064,2644.0,2643.6,3.78265]
[1727178389349,4.66450262,2644.1,2643.6,3.78265]
[1727178389561,1.75994616,2644.0,2643.6,3.78265]
[1727178389767,6.32998319,2644.0,2643.5,3.78276]
[1727178389933,4.57003703,2644.0,2643.6,3.78271]
[1727178390460,3.78217,2644.0,2643.6,3.78271]
[1727178390654,4.66442587,2644.1,2643.6,3.78271]
[1727178391583,0.70430018,2644.0,2643.7,7.56506]
[1727178391741,4.56972703,2644.2,2643.7,3.78249]
[1727178391935,2.54887008,2644.1,2643.7,3.78249]
[1727178392164,0.78786703,2644.1,2643.7,7.565]
[1727178392439,2.54879893,2644.1,2643.7,7.565]
[1727178392745,0.78786703,2644.1,2643.7,7.565]
[1727178392941,2.54882099,2644.1,2643.7,3.78249]
[1727178393266,0.78786703,2644.2,2643.9,3.78214]
[1727178393577,0.78786703,2644.3,2644.2,3.78186]
[1727178393739,0.70446213,2644.3,2644.2,3.78186]
[1727178393943,0.78786703,2644.4,2644.2,3.78186]
[1727178394678,1.05672497,2644.3,2644.1,3.78199]
[1727178394869,0.78786703,2644.4,2644.1,3.78199]
[1727178395376,0.70452348,2644.3,2644.1,3.78199]
[1727178395680,0.78786703,2644.4,2644.1,3.78199]
[1727178396581,0.78786703,2644.3,2644.1,3.78199]
[1727178398140,0.78786703,2644.4,2644.0,3.78205]
[1727178398388,1.17783339,2644.5,2644.2,3.78185]
[1727178398389,2.54986391,2644.3,2644.2,3.78185]
[1727178399159,1.84506516,2644.3,2644.1,3.78198]
[1727178399488,0.78786703,2644.3,2644.1,3.78198]
[1727178399995,2.55062367,2644.3,2644.1,3.78198]
[1727178400181,0.78786703,2644.3,2644.1,3.78198]
[1727178401295,1.49297409,2644.3,2644.1,3.78198]
[1727178401889,0.70510706,2644.2,2644.1,3.78198]
[1727178402593,1.76331579,2644.2,2644.1,3.78198]
[1727178402794,1.05820873,2644.2,2644.1,3.78198]
[1727178403102,0.70510706,2644.2,2644.1,3.78198]
[1727178403480,1.49326973,2644.3,2644.1,3.78198]
[1727178403796,1.05823114,2644.2,2644.1,3.78198]
[1727178404489,0.78786703,2644.2,2644.1,3.78198]
[1727178405307,1.49326973,2644.2,2644.1,3.78198]
[1727178406993,1.49326973,2644.2,2643.9,8.31934]
[1727178407193,1.49326973,2644.2,2643.9,4.53714]
[1727178407617,0.7054027,2644.1,2644.0,3.78201]
[1727178408318,1.49377812,2644.2,2644.0,3.78201]
[1727178408518,1.76499478,2644.1,2644.0,3.78201]
[1727178409592,2.55286181,2644.1,2644.0,3.78201]
[1727178411591,2.94282817,2644.1,2644.0,3.78201]
[1727178412495,1.76499478,2644.1,2644.0,3.78201]
[1727178412712,3.3354393,2644.1,2644.0,3.78201]
[1727178412911,3.3354393,2644.1,2643.8,3.78237]
[1727178412912,5.50720556,2644.1,2643.8,3.78237]
[1727178413226,1.57044452,2643.9,2643.8,3.78237]
[1727178413381,4.7535184,2643.9,2643.8,3.78237]
[1727178415220,3.18307388,2643.9,2643.7,3.78257]
[1727178415376,1.57044452,2644.0,2643.8,3.78243]
[1727178415577,1.76895318,2643.9,2643.8,3.78243]
[1727178416086,2.9543553,2643.9,2643.8,3.78243]
[1727178416311,3.18423045,2643.9,2643.8,3.78243]
[1727178416712,3.3393977,2643.9,2643.7,3.78247]
[1727178416933,2.95443245,2643.8,2643.7,3.78247]
[1727178417911,2.95443245,2643.8,2643.7,4.1092267]
[1727178419031,2.55936283,2643.8,2643.7,3.78247]
[1727178419183,2.95443245,2643.8,2643.7,4.10923368]
[1727178420019,2.95443245,2643.8,2643.7,4.10924202]
[1727178420416,2.55941554,2643.8,2643.7,4.10924202]
[1727178420627,2.95443245,2643.8,2643.7,4.10924202]
[1727178421419,2.95443245,2643.8,2643.7,3.78247]
[1727178421899,2.95443245,2643.8,2643.7,4.1092739]
[1727178423994,1.76895318,2643.8,2643.7,10.7482159]
[1727178424230,1.76895318,2643.8,2643.7,12.32986001]
[1727178424429,2.95443245,2643.8,2643.7,12.00305611]
[1727178425107,2.55955672,2643.8,2643.7,12.32987676]
[1727178425721,2.95443245,2643.8,2643.7,12.32987676]
[1727178426021,2.95632932,2643.8,2643.7,10.74823265]
[1727178426328,2.56171171,2643.8,2643.7,10.74823265]
[1727178426528,2.56171171,2643.8,2643.7,10.421412]
[1727178427822,2.56171171,2643.8,2643.7,16.74683]
[1727178428127,2.56171171,2643.8,2643.7,18.876052]
[1727178428624,2.56171171,2643.8,2643.7,19.39897238]
[1727178428823,2.56171171,2643.8,2643.7,18.876052]
[1727178430077,1.18547927,2643.9,2643.8,3.78243]
[1727178430370,1.97661148,2644.6,2644.4,3.78157]
[1727178430659,2.4123078,2645.0,2644.8,3.781]
[1727178430866,2.01682044,2645.0,2644.9,3.78086]
[1727178431237,0.0378301,2645.0,2644.9,3.78086]
[1727178431665,0.0378301,2645.0,2644.9,9.962545]
[1727178431880,0.0378301,2645.0,2644.9,11.65837343]
[1727178432205,0.0378301,2645.0,2644.9,12.45927343]
[1727178432524,0.0378301,2645.0,2644.9,15.59839688]
[1727178432720,0.0378301,2645.0,2644.9,18.59839688]
[1727178433158,0.0378301,2645.0,2644.9,19.22720511]
[1727178433325,0.0378301,2645.0,2644.9,18.59839688]
[1727178433518,0.0378301,2645.0,2644.9,19.14839688]
[1727178434124,0.0378301,2645.0,2644.9,19.54373232]
[1727178434460,0.0378301,2645.0,2644.9,23.54373232]
[1727178434960,0.0378301,2645.0,2644.9,24.17119951]
[1727178435258,0.0378301,2645.0,2644.9,23.54373232]
[1727178436664,0.0378301,2645.0,2644.9,23.14839688]
[1727178438582,0.0378301,2645.0,2644.9,22.59839688]
[1727178439227,0.038,2646.0,2644.9,22.59839688]
[1727178439557,0.038,2646.0,2645.3,3.0]
[1727178440566,3.77945,2645.9,2645.4,3.78005]
[1727178440750,3.87394333,2645.9,2645.4,3.78005]
[1727178441861,3.77945,2645.9,2645.4,3.78005]
[1727178442029,3.77945,2645.9,2645.4,7.56012]
[1727178442228,3.81731,2646.0,2645.5,3.77997]
[1727178449047,0.038,2646.0,2645.3,6.78028]
[1727178449278,3.77958,2645.8,2645.3,6.78028]
[1727178449569,3.77958,2645.8,2645.3,10.56048]
[1727178449790,0.038,2646.0,2645.4,3.78012]
[1727178449928,3.77946,2645.9,2645.4,3.78012]
[1727178450429,3.77943,2645.9,2645.4,3.78012]
[1727178452274,3.77943,2645.9,2645.5,3.77998]
[1727178452565,0.038,2646.0,2645.5,3.77991]
[1727178452767,3.81729,2646.0,2645.5,7.55984]
[1727178452966,3.81729,2646.0,2645.5,3.77991]
[1727178453295,3.81729,2646.0,2645.5,7.55983]
[1727178453634,0.038,2646.0,2645.6,3.13912345]
[1727178453830,0.038,2646.0,2645.9,3.77943]
[1727178456011,0.038,2646.0,2645.3,3.78016]
[1727178456221,3.77994,2645.6,2645.2,0.8108]
[1727178456908,3.78,2645.5,2645.1,3.78049]
[1727178457280,3.77973,2645.7,2645.2,3.78034]
[1727178457913,3.77986,2645.6,2645.2,3.78034]
[1727178458117,3.77973,2645.7,2645.2,3.78034]
[1727178458271,3.77996,2645.6,2645.1,3.78057]
[1727178458471,3.77973,2645.7,2645.2,3.78036]
[1727178458678,3.77973,2645.7,2645.2,3.78035]
[1727178460595,3.77973,2645.7,2645.3,3.78026]
[1727178460796,3.77973,2645.7,2645.2,3.78035]
[1727178461098,3.77996,2645.6,2645.1,3.13912345]
[1727178461404,3.77996,2645.6,2645.1,6.91967345]
[1727178461599,3.77973,2645.7,2645.2,3.78039]
[1727178462095,7.55957,2645.7,2645.2,3.78039]
[1727178462436,3.77973,2645.7,2645.2,3.78039]
[1727178462636,3.77957,2645.8,2645.1,6.91958345]
[1727178462933,3.77957,2645.8,2645.2,3.78039]
[1727178462934,3.77971,2645.7,2645.2,3.78039]
[1727178463512,3.77987,2645.6,2645.2,3.78039]
[1727178464013,3.77987,2645.6,2645.1,6.91956345]
[1727178464341,3.78007,2645.5,2645.1,3.13912345]
[1727178464542,3.78007,2645.5,2645.0,3.8187]
[1727178465336,3.78007,2645.5,2645.0,7.59935]
[1727178465536,3.78007,2645.5,2645.0,3.81865]
[1727178466018,3.78007,2645.5,2645.0,7.59929]
[1727178466400,3.78022,2645.4,2645.0,0.038]
[1727178466601,0.09450909,2645.4,2645.0,0.038]
[1727178466893,3.78049,2645.2,2645.0,0.038]
[1727178467092,3.78057,2645.1,2645.0,0.038]
[1727178469963,0.78737342,2645.3,2645.0,0.038]
[1727178470163,0.78737342,2645.4,2645.0,0.038]
[1727178470365,0.67872018,2645.4,2645.0,4.63419]
[1727178470665,8.34759342,2645.5,2645.0,4.63419]
[1727178470848,4.4594542,2645.4,2645.0,4.63419]
[1727178471049,3.78014,2645.4,2645.0,4.63419]
[1727178471436,3.78014,2645.4,2645.0,0.8535]
[1727178472233,0.67986248,2645.3,2645.0,4.63415]
[1727178472546,4.56751342,2645.4,2645.0,4.63415]
[1727178472750,0.67985484,2645.3,2645.0,4.63415]
[1727178472959,4.56751342,2645.4,2645.2,0.361445]
[1727178473163,0.67985272,2645.3,2645.2,0.361445]
[1727178473361,2.48749336,2645.3,2645.2,0.361445]
[1727178473565,0.67985272,2645.3,2645.2,0.361445]
[1727178473766,2.48753594,2645.3,2645.2,0.361445]
[1727178473968,0.67985272,2645.3,2645.2,0.361445]
[1727178474342,2.4880485,2645.3,2645.2,0.361445]
[1727178475176,6.2683285,2645.3,2645.2,0.361445]
[1727178475403,6.66242622,2645.3,2645.2,0.361445]
[1727178476179,2.88214622,2645.3,2645.2,0.361445]
[1727178476377,1.86132386,2645.3,2645.2,0.361445]
[1727178476678,2.88214622,2645.3,2645.2,0.361445]
[1727178477869,2.88462417,2645.3,2645.2,0.361445]
[1727178481313,2.88448221,2645.3,2645.2,0.361445]
[1727178482179,1.70301107,2645.3,2645.2,4.141875]
[1727178482490,2.49349076,2645.3,2645.2,5.0194685]
[1727178482868,0.68120443,2645.3,2645.2,5.0194685]
[1727178483200,1.47168412,2645.3,2645.2,5.0194685]
[1727178484486,1.47168412,2645.3,2645.2,8.15859195]
[1727178484487,0.68120443,2645.3,2645.2,8.15859195]
[1727178484690,0.79047969,2645.4,2645.3,3.78028]
[1727178484865,0.79047969,2645.6,2645.3,2.09038438]
[1727178485118,1.18147114,2645.8,2645.7,3.77971]
[1727178485119,0.79047969,2645.8,2645.7,3.77971]
[1727178485433,1.47240106,2645.8,2645.7,3.77971]
[1727178485751,0.79047969,2645.8,2645.7,3.77971]
[1727178485906,2.49524146,2645.8,2645.7,4.93166935]
[1727178486342,0.79047969,2645.8,2645.7,4.93166935]
[1727178486554,2.49544897,2645.8,2645.7,3.77971]
[1727178486755,1.70476177,2645.8,2645.7,3.77971]
[1727178486953,2.88623291,2645.8,2645.6,4.60075]
[1727178487128,2.88623291,2645.8,2645.6,3.77985]
[1727178487129,1.70476177,2645.7,2645.6,3.77985]
[1727178487646,2.88623291,2645.7,2645.6,3.77985]
[1727178487945,2.88623291,2645.7,2645.4,4.60094]
[1727178488262,2.49541034,2645.6,2645.4,4.60094]
[1727178488553,0.68190471,2645.5,2645.4,4.60094]
[1727178488763,0.68190471,2645.5,2645.2,5.8402785]
[1727178488963,0.68183564,2645.4,2645.2,4.962685]
[1727178489324,0.68183564,2645.4,2645.3,3.78028]
[1727178490060,1.70459797,2645.4,2645.3,3.78028]
[1727178490223,2.49524654,2645.4,2645.2,4.962685]
[1727178490422,0.68183581,2645.3,2645.2,4.962685]
[1727178490745,1.47248438,2645.3,2645.2,0.361445]
[1727178490929,2.49523698,2645.3,2645.2,0.361445]
[1727178491971,1.70458841,2645.3,2645.2,0.361445]
[1727178492495,2.88605955,2645.3,2645.2,0.361445]
[1727178492759,6.84809811,2645.3,2645.2,0.361445]
[1727178492960,8.4241708,2645.3,2645.2,0.361445]
[1727178493465,8.42423163,2645.3,2645.2,0.361445]
[1727178493925,4.64395163,2645.3,2645.2,0.361445]
[1727178496281,3.28061179,2645.3,2645.2,0.361445]
[1727178496480,1.70458841,2645.3,2645.2,0.361445]
[1727178496798,3.28061179,2645.3,2645.2,0.361445]
[1727178497846,2.89087099,2645.3,2645.2,0.361445]
[1727178499859,2.20903518,2645.3,2645.2,0.361445]
[1727178500060,2.89175271,2645.3,2645.2,0.361445]
[1727178500272,2.89175271,2645.3,2645.2,4.141875]
[1727178501184,1.70547013,2645.3,2645.2,4.141875]
[1727178501346,2.89175271,2645.3,2645.2,4.141875]
[1727178503153,1.70547013,2645.3,2645.2,4.141875]
[1727178503659,2.89175271,2645.3,2645.2,4.141875]
[1727178506678,1.70547013,2645.3,2645.2,4.141875]
[1727178507078,2.89175271,2645.3,2645.2,4.141875]
[1727178509473,1.70547013,2645.3,2645.2,10.665858]
[1727178509670,2.49869096,2645.3,2645.2,12.51030115]
[1727178510091,1.70736785,2645.3,2645.2,12.51030115]
[1727178510405,0.68294714,2645.3,2645.2,12.51030115]
[1727178511373,0.79132311,2645.4,2645.3,3.78028]
[1727178511601,2.49871184,2645.4,2645.3,28.74569363]
[1727178511802,2.49871184,2645.4,2645.3,25.47009712]
[1727178512711,2.49871184,2645.4,2645.3,22.43333712]
[1727178513426,2.49871184,2645.4,2645.3,5.78739312]
[1727178513777,2.49871184,2645.4,2645.3,3.78028]
[1727178514515,2.50042624,2645.4,2645.3,3.78028]
[1727178517696,2.89538571,2645.4,2645.2,4.141805]
[1727178517897,2.89538571,2645.4,2645.2,0.361445]
[1727178517898,1.70910313,2645.3,2645.2,0.361445]
[1727178518093,2.89538571,2645.3,2645.2,0.361445]
[1727178518425,3.28512651,2645.3,2645.2,0.361445]
[1727178518607,3.07713953,2645.3,2645.2,0.361445]
[1727178518925,2.89677851,2645.3,2645.2,0.361445]
[1727178519229,2.89774343,2645.3,2645.2,0.361445]
[1727178520284,1.18767538,2645.3,2645.2,0.361445]
[1727178521184,4.96795538,2645.3,2645.2,0.361445]
[1727178521385,3.78028,2645.3,2645.2,0.361445]
[1727178521793,5.14835069,2645.3,2645.2,0.361445]
[1727178521985,8.37870735,2645.3,2645.2,0.361445]
[1727178522186,12.25522482,2645.3,2645.2,0.361445]
[1727178522383,12.25522482,2645.3,2645.0,0.038]
[1727178522384,3.78057,2645.1,2645.0,0.038]
[1727178522596,9.99506463,2645.1,2645.0,0.038]
[1727178522889,15.02602085,2645.1,2645.0,0.038]
[1727178523114,12.25551482,2645.1,2645.0,0.038]
[1727178523626,15.02453508,2645.1,2645.0,0.038]
[1727178523984,12.25551482,2645.1,2645.0,0.038]
[1727178524382,15.02453508,2645.1,2645.0,0.038]
[1727178525000,18.02453508,2645.1,2645.0,0.038]
[1727178525390,18.01429645,2645.1,2645.0,0.038]
[1727178526491,15.24702764,2645.1,2645.0,0.038]
[1727178526698,3.78152,2644.5,2643.9,3.78221]
[1727178526899,0.79048746,2644.3,2643.9,3.78221]
[1727178527117,1.81154388,2644.3,2643.9,3.78221]
[1727178527288,0.68084171,2644.2,2643.9,3.78221]
[1727178527487,0.79048746,2644.3,2643.9,3.78221]
[1727178528795,2.49109513,2644.3,2643.9,3.78221]
[1727178529134,0.79048746,2644.3,2643.9,3.78221]
[1727178529421,0.79048746,2644.4,2643.9,3.78221]
[1727178529638,2.49158819,2644.4,2643.9,3.78219]
[1727178529791,0.79048746,2644.4,2643.9,3.78219]
[1727178530104,3.78172,2644.3,2643.9,3.78219]
[1727178531493,4.57213746,2644.4,2643.9,3.78219]
[1727178531690,4.57213746,2644.4,2643.9,7.56439]
[1727178531891,3.78165,2644.4,2643.9,3.78219]
[1727178533131,3.87637124,2644.3,2643.8,3.78242]
[1727178533595,3.78187,2644.2,2643.7,0.8094]
[1727178533817,3.78187,2644.2,2643.7,4.59195]
[1727178534412,0.09455124,2644.3,2643.8,3.78236]
[1727178534612,3.87631124,2644.3,2643.8,3.78236]
[1727178535143,3.78207,2644.1,2643.7,0.8094]
[1727178535514,3.78207,2644.1,2643.7,4.59195]
[1727178535917,4.57230746,2644.3,2643.7,4.59195]
[1727178536111,8.44866476,2644.3,2643.7,4.59195]
[1727178536308,4.57228746,2644.3,2643.7,4.59195]
[1727178536549,3.7819,2644.2,2643.7,4.59195]
[1727178538553,3.78208,2644.1,2643.7,0.8094]
[1727178539129,3.87670985,2644.0,2643.7,0.8094]
[1727178540151,0.09455985,2644.0,2643.5,4.5848901]
[1727178540353,3.78208,2644.1,2643.6,3.78267]
[1727178541356,7.56418,2644.1,2643.6,3.78267]
[1727178541569,3.78226,2644.0,2643.5,8.3676801]
[1727178541863,7.56503,2643.8,2643.5,0.8020301]
[1727178542062,3.87706804,2643.8,2643.5,0.0378301]
[1727178542225,0.09456901,2643.7,2643.5,0.0378301]
[1727178542626,3.78272,2643.6,2643.5,0.0378301]
[1727178542947,3.87707274,2643.8,2643.5,0.0378301]
[1727178543149,3.78258,2643.7,2643.5,0.0378301]
[1727178543534,3.7825,2643.8,2643.5,0.0378301]
[1727178545329,7.56507,2643.8,2643.5,0.0378301]
[1727178545537,3.78272,2643.6,2643.5,0.0378301]
[1727178546623,3.78272,2643.6,2643.1,0.8177301]
[1727178546624,3.7829,2643.5,2643.1,0.8177301]
[1727178546827,3.78272,2643.6,2643.1,0.8177301]
[1727178546828,3.87761105,2643.4,2643.1,0.8177301]
[1727178547331,0.09458105,2643.4,2643.1,0.8177301]
[1727178547870,0.09458105,2643.4,2643.1,4.6011201]
[1727178548064,3.87745053,2643.5,2643.1,4.6011201]
[1727178549743,3.78287,2643.5,2643.1,4.6011201]
[1727178550767,3.78251,2643.8,2643.3,3.78305]
[1727178551761,3.7826,2643.7,2643.2,3.78328]
[1727178551964,3.78273,2643.6,2643.2,3.7832]
[1727178552741,3.7826,2643.7,2643.2,3.7832]
[1727178552972,3.7826,2643.7,2643.2,7.5664]
[1727178553189,3.7826,2643.7,2643.2,7.56642]
[1727178553669,3.78238,2643.9,2643.4,3.783]
[1727178554170,0.88506061,2644.2,2643.4,3.783]
[1727178554376,3.78216,2644.0,2643.5,0.8179]
[1727178554674,3.78244,2643.8,2643.5,0.8179]
[1727178555730,7.56495,2643.8,2643.3,4.60101]
[1727178555968,3.78244,2643.8,2643.3,4.60101]
[1727178556272,3.78265,2643.7,2643.3,0.8179]
[1727178557060,3.78265,2643.7,2643.3,4.60104]
[1727178559578,3.78243,2643.8,2643.4,3.78298]
[1727178562581,3.78243,2643.8,2643.3,0.8179]
[1727178562582,7.56498,2643.8,2643.3,0.8179]
[1727178562743,4.57291746,2643.8,2643.3,0.8179]
[1727178562942,4.46005835,2643.7,2643.3,4.60103]